[Event "*** SCC Grand Prix: Titled Tuesday Blitz"]
[Site "Chess.com"]
[Date "2020.06.09"]
[Round "1"]
[White "rududuyk"]
[Black "Pomegranate988"]
[Result "0-1"]
[WhiteElo "2198"]
[BlackElo "2561"]
[TimeControl "180+1"]
[EndTime "9:06:16 PDT"]
[Termination "Pomegranate988 won on time"]

1. e4 {[%clk 0:03:00.8]} 1... c6 {[%clk 0:02:54.5]} 2. d4 {[%clk 0:02:59.8]}
2... d5 {[%clk 0:02:54.7]} 3. exd5 {[%clk 0:03:00.3]} 3... cxd5 {[%clk
0:02:54.9]} 4. c4 {[%clk 0:03:00.8]} 4... Nf6 {[%clk 0:02:53.5]} 5. Nc3 {[%clk
0:03:00.9]} 5... Nc6 {[%clk 0:02:53.3]} 6. Nf3 {[%clk 0:02:59.9]} 6... Bg4
{[%clk 0:02:52.3]} 7. Be2 {[%clk 0:02:45.8]} 7... dxc4 {[%clk 0:02:41.6]} 8. O-O
{[%clk 0:02:42.5]} 8... e6 {[%clk 0:02:37.6]} 9. Qa4 {[%clk 0:02:28.4]} 9... Be7
{[%clk 0:02:25.5]} 10. h3 {[%clk 0:02:10]} 10... Bh5 {[%clk 0:02:19.6]} 11. g4
{[%clk 0:01:59.3]} 11... Bg6 {[%clk 0:02:18.3]} 12. Ne5 {[%clk 0:01:59.8]} 12...
O-O {[%clk 0:02:18.1]} 13. Nxc6 {[%clk 0:01:50.5]} 13... bxc6 {[%clk 0:02:18.1]}
14. Be3 {[%clk 0:01:37.4]} 14... Nd5 {[%clk 0:02:08.9]} 15. Qxc4 {[%clk
0:01:26.7]} 15... Nxe3 {[%clk 0:02:06.7]} 16. fxe3 {[%clk 0:01:26.2]} 16... Rc8
{[%clk 0:02:03.6]} 17. Rad1 {[%clk 0:01:07.5]} 17... Qc7 {[%clk 0:01:58.7]} 18.
Rf3 {[%clk 0:00:41.7]} 18... h5 {[%clk 0:01:48.2]} 19. e4 {[%clk 0:00:36.6]}
19... c5 {[%clk 0:01:23]} 20. d5 {[%clk 0:00:30.7]} 20... Qe5 {[%clk 0:01:22.6]}
21. Kg2 {[%clk 0:00:17.6]} 21... Bd6 {[%clk 0:01:19.5]} 22. Rh1 {[%clk
0:00:16.5]} 22... exd5 {[%clk 0:01:17.4]} 23. Qxd5 {[%clk 0:00:13.5]} 23... Rfe8
{[%clk 0:01:13]} 24. Qxe5 {[%clk 0:00:11.5]} 24... Bxe5 {[%clk 0:01:13.1]} 25.
Bd3 {[%clk 0:00:06.7]} 25... c4 {[%clk 0:01:11.7]} 26. Bc2 {[%clk 0:00:05.6]}
26... Rb8 {[%clk 0:01:11.5]} 27. Rb1 {[%clk 0:00:02.3]} 27... Red8 {[%clk
0:01:07]} 28. gxh5 {[%clk 0:00:02.3]} 28... Bxh5 {[%clk 0:01:06]} 29. Rf5 {[%clk
0:00:02.8]} 29... Bxc3 {[%clk 0:01:03.8]} 0-1

[Event "*** SCC Grand Prix: Titled Tuesday Blitz"]
[Site "Chess.com"]
[Date "2020.06.09"]
[Round "1"]
[White "ElviraBerend"]
[Black "Aygehovit1992"]
[Result "1-0"]
[WhiteElo "2380"]
[BlackElo "2684"]
[TimeControl "180+1"]
[EndTime "9:06:20 PDT"]
[Termination "ElviraBerend won by resignation"]

1. d4 {[%clk 0:02:58.7]} 1... d6 {[%clk 0:02:59.8]} 2. c4 {[%clk 0:02:57.6]}
2... g6 {[%clk 0:02:59.6]} 3. Nc3 {[%clk 0:02:57]} 3... Bg7 {[%clk 0:02:59.9]}
4. Nf3 {[%clk 0:02:57]} 4... Nf6 {[%clk 0:02:59.6]} 5. g3 {[%clk 0:02:56.8]}
5... O-O {[%clk 0:02:59.3]} 6. Bg2 {[%clk 0:02:56.5]} 6... Nc6 {[%clk
0:02:59.7]} 7. O-O {[%clk 0:02:56.1]} 7... e5 {[%clk 0:02:59.6]} 8. d5 {[%clk
0:02:55.4]} 8... Ne7 {[%clk 0:02:58.9]} 9. e4 {[%clk 0:02:55.4]} 9... Nd7 {[%clk
0:02:58.6]} 10. Ne1 {[%clk 0:02:54.8]} 10... f5 {[%clk 0:02:58.8]} 11. Nd3
{[%clk 0:02:54.6]} 11... Nf6 {[%clk 0:02:57.3]} 12. f4 {[%clk 0:02:50.9]} 12...
fxe4 {[%clk 0:02:55.5]} 13. Nxe4 {[%clk 0:02:32.3]} 13... Nxe4 {[%clk 0:02:55]}
14. Bxe4 {[%clk 0:02:30.9]} 14... Bh3 {[%clk 0:02:55.4]} 15. Bg2 {[%clk
0:02:29.5]} 15... Bxg2 {[%clk 0:02:54.8]} 16. Kxg2 {[%clk 0:02:29]} 16... e4
{[%clk 0:02:46.1]} 17. Nf2 {[%clk 0:02:27.1]} 17... Nf5 {[%clk 0:02:46.1]} 18.
Nxe4 {[%clk 0:02:17.5]} 18... Bxb2 {[%clk 0:02:45.3]} 19. Rb1 {[%clk 0:02:11.8]}
19... Re8 {[%clk 0:02:04.6]} 20. Re1 {[%clk 0:02:08.5]} 20... Bxc1 {[%clk
0:01:39]} 21. Qxc1 {[%clk 0:02:07.5]} 21... b6 {[%clk 0:01:36.6]} 22. Qc3 {[%clk
0:02:05.7]} 22... Rf8 {[%clk 0:01:18.4]} 23. Ng5 {[%clk 0:02:04.6]} 23... Qd7
{[%clk 0:01:16.7]} 24. Ne6 {[%clk 0:02:02.9]} 24... Rf7 {[%clk 0:01:16.7]} 25.
Re4 {[%clk 0:01:55.6]} 25... Re8 {[%clk 0:01:11.6]} 26. Rbe1 {[%clk 0:01:55.4]}
26... h6 {[%clk 0:01:07.4]} 27. Nc5 {[%clk 0:01:39.4]} 27... bxc5 {[%clk
0:00:17.9]} 28. Rxe8+ {[%clk 0:01:37.8]} 28... Rf8 {[%clk 0:00:18.4]} 29. Rxf8+
{[%clk 0:01:35.9]} 29... Kxf8 {[%clk 0:00:18.7]} 30. Qh8+ {[%clk 0:01:34.9]}
30... Kf7 {[%clk 0:00:19.1]} 31. Re6 {[%clk 0:01:30]} 31... Ng7 {[%clk
0:00:16.1]} 32. Re2 {[%clk 0:01:26.7]} 32... Qg4 {[%clk 0:00:14.8]} 33. Re1
{[%clk 0:01:20.7]} 33... Qf5 {[%clk 0:00:13.2]} 34. Qd8 {[%clk 0:01:08.4]} 34...
Qc2+ {[%clk 0:00:12]} 35. Kg1 {[%clk 0:01:06.7]} 35... Qxc4 {[%clk 0:00:11.5]}
36. Re7+ {[%clk 0:01:03.9]} 1-0

[Event "*** SCC Grand Prix: Titled Tuesday Blitz"]
[Site "Chess.com"]
[Date "2020.06.09"]
[Round "1"]
[White "Semetey"]
[Black "szefru"]
[Result "1-0"]
[WhiteElo "2535"]
[BlackElo "2142"]
[TimeControl "180+1"]
[EndTime "9:06:20 PDT"]
[Termination "Semetey won by resignation"]

1. d4 {[%clk 0:02:59.9]} 1... d5 {[%clk 0:02:55.3]} 2. Bf4 {[%clk 0:02:58.6]}
2... c6 {[%clk 0:02:54.8]} 3. e3 {[%clk 0:02:58.3]} 3... Nf6 {[%clk 0:02:54.8]}
4. c4 {[%clk 0:02:58.3]} 4... e6 {[%clk 0:02:54.5]} 5. Nc3 {[%clk 0:02:58.5]}
5... Nbd7 {[%clk 0:02:54]} 6. Nf3 {[%clk 0:02:58.2]} 6... a6 {[%clk 0:02:53.7]}
7. h3 {[%clk 0:02:53.9]} 7... Be7 {[%clk 0:02:52.3]} 8. c5 {[%clk 0:02:46.1]}
8... b6 {[%clk 0:02:44.7]} 9. b4 {[%clk 0:02:45.7]} 9... a5 {[%clk 0:02:44.4]}
10. a3 {[%clk 0:02:45.3]} 10... axb4 {[%clk 0:02:44.2]} 11. axb4 {[%clk
0:02:44.6]} 11... Rxa1 {[%clk 0:02:45.1]} 12. Qxa1 {[%clk 0:02:44.7]} 12... bxc5
{[%clk 0:02:43.6]} 13. bxc5 {[%clk 0:02:45.6]} 13... O-O {[%clk 0:02:38.3]} 14.
Bd3 {[%clk 0:02:46]} 14... Nh5 {[%clk 0:02:20.5]} 15. Bh2 {[%clk 0:02:44.4]}
15... g6 {[%clk 0:02:10.5]} 16. O-O {[%clk 0:02:42.4]} 16... Bf6 {[%clk
0:02:08.7]} 17. Qa7 {[%clk 0:02:39.8]} 17... Re8 {[%clk 0:01:59.7]} 18. Bc7
{[%clk 0:02:29.9]} 18... Qe7 {[%clk 0:01:57.6]} 19. Bd6 {[%clk 0:02:29.5]} 19...
Qd8 {[%clk 0:01:56]} 20. e4 {[%clk 0:01:48.8]} 20... e5 {[%clk 0:01:46.3]} 21.
exd5 {[%clk 0:01:41]} 21... exd4 {[%clk 0:01:42.3]} 22. dxc6 {[%clk 0:01:36.4]}
22... Nf8 {[%clk 0:01:24.4]} 23. c7 {[%clk 0:00:43]} 23... Qd7 {[%clk
0:01:23.7]} 24. Bb5 {[%clk 0:00:39.5]} 24... Qe6 {[%clk 0:01:07.8]} 25. Bxe8
{[%clk 0:00:39.1]} 25... Qxe8 {[%clk 0:01:06.9]} 26. Nd5 {[%clk 0:00:37]} 26...
Qc6 {[%clk 0:01:03.1]} 27. Nxf6+ {[%clk 0:00:33.1]} 27... Nxf6 {[%clk
0:01:01.6]} 28. Nxd4 {[%clk 0:00:33.4]} 28... Qe4 {[%clk 0:00:58]} 29. Qb8
{[%clk 0:00:32.8]} 29... Qe8 {[%clk 0:00:51.6]} 30. Nc6 {[%clk 0:00:29.1]} 30...
N8d7 {[%clk 0:00:48.8]} 31. Ne7+ {[%clk 0:00:25.4]} 31... Kg7 {[%clk 0:00:48]}
32. Qxc8 {[%clk 0:00:25.3]} 1-0

[Event "*** SCC Grand Prix: Titled Tuesday Blitz"]
[Site "Chess.com"]
[Date "2020.06.09"]
[Round "1"]
[White "Sanyura"]
[Black "FMalexhdez"]
[Result "1-0"]
[WhiteElo "2518"]
[BlackElo "2105"]
[TimeControl "180+1"]
[EndTime "9:06:20 PDT"]
[Termination "Sanyura won by resignation"]

1. e4 {[%clk 0:03:00.7]} 1... c5 {[%clk 0:02:59.3]} 2. Nf3 {[%clk 0:03:00.3]}
2... d6 {[%clk 0:02:59.8]} 3. d4 {[%clk 0:02:59]} 3... cxd4 {[%clk 0:03:00.4]}
4. Nxd4 {[%clk 0:02:59.9]} 4... Nf6 {[%clk 0:02:59.9]} 5. Nc3 {[%clk 0:03:00.4]}
5... a6 {[%clk 0:02:57.8]} 6. g3 {[%clk 0:03:00]} 6... e5 {[%clk 0:02:57.7]} 7.
Nb3 {[%clk 0:02:59.7]} 7... Be6 {[%clk 0:02:57.5]} 8. Bg2 {[%clk 0:02:59.8]}
8... Nbd7 {[%clk 0:02:57.2]} 9. O-O {[%clk 0:02:59.9]} 9... h5 {[%clk
0:02:54.7]} 10. a4 {[%clk 0:02:59.3]} 10... Be7 {[%clk 0:02:51]} 11. Re1 {[%clk
0:02:58.6]} 11... h4 {[%clk 0:02:48.5]} 12. Nd2 {[%clk 0:02:58.4]} 12... hxg3
{[%clk 0:02:45.1]} 13. hxg3 {[%clk 0:02:59.3]} 13... Rc8 {[%clk 0:02:34.1]} 14.
Nf1 {[%clk 0:02:57.8]} 14... Bg4 {[%clk 0:02:01.9]} 15. f3 {[%clk 0:02:48.7]}
15... Be6 {[%clk 0:01:57.5]} 16. Ne3 {[%clk 0:02:47.6]} 16... Nb6 {[%clk
0:01:51.5]} 17. a5 {[%clk 0:02:46.5]} 17... Nc4 {[%clk 0:01:45.1]} 18. Ned5
{[%clk 0:02:42.2]} 18... Nxd5 {[%clk 0:01:37.8]} 19. exd5 {[%clk 0:02:40.3]}
19... Bh3 {[%clk 0:01:38]} 20. Ne4 {[%clk 0:02:37.2]} 20... Bxg2 {[%clk
0:01:36.4]} 21. Kxg2 {[%clk 0:02:38.1]} 21... Bf6 {[%clk 0:01:21.4]} 22. b3
{[%clk 0:02:35.3]} 22... Nxa5 {[%clk 0:01:20.2]} 23. Bd2 {[%clk 0:02:34.8]}
23... b6 {[%clk 0:01:19.2]} 24. Bb4 {[%clk 0:02:34]} 24... Be7 {[%clk
0:01:17.3]} 25. Bxa5 {[%clk 0:02:31.4]} 25... bxa5 {[%clk 0:01:15.4]} 26. Qd2
{[%clk 0:02:30.4]} 26... f5 {[%clk 0:01:12.2]} 27. Nf2 {[%clk 0:02:26.9]} 27...
Bg5 {[%clk 0:01:08.1]} 28. f4 {[%clk 0:02:25.1]} 28... Bf6 {[%clk 0:01:04.3]}
29. c4 {[%clk 0:02:21.7]} 29... e4 {[%clk 0:01:00.9]} 30. Rxa5 {[%clk
0:02:14.7]} 30... Kf7 {[%clk 0:00:58.6]} 31. Rxa6 {[%clk 0:02:07.7]} 31... Kg6
{[%clk 0:00:39.4]} 32. g4 {[%clk 0:02:01.7]} 32... Rh4 {[%clk 0:00:31.8]} 33.
gxf5+ {[%clk 0:01:51.7]} 33... Kh7 {[%clk 0:00:29.4]} 34. Rxe4 {[%clk
0:01:51.4]} 34... Rb8 {[%clk 0:00:24.7]} 35. Qd3 {[%clk 0:01:49.7]} 35... Qc8
{[%clk 0:00:23.2]} 36. Rxd6 {[%clk 0:01:30.4]} 36... Qxf5 {[%clk 0:00:22.5]} 37.
Rxf6 {[%clk 0:01:28.3]} 37... Rg4+ {[%clk 0:00:14.9]} 38. Nxg4 {[%clk
0:01:24.3]} 38... Qxg4+ {[%clk 0:00:15]} 39. Kf1 {[%clk 0:01:24.4]} 39... Rxb3
{[%clk 0:00:07.2]} 40. Qxb3 {[%clk 0:01:19]} 1-0

[Event "*** SCC Grand Prix: Titled Tuesday Blitz"]
[Site "Chess.com"]
[Date "2020.06.09"]
[Round "1"]
[White "pfalcon1949"]
[Black "guillembaches"]
[Result "0-1"]
[WhiteElo "1914"]
[BlackElo "2479"]
[TimeControl "180+1"]
[EndTime "9:06:21 PDT"]
[Termination "guillembaches won on time"]

1. d4 {[%clk 0:03:00.9]} 1... Nf6 {[%clk 0:02:59.6]} 2. c4 {[%clk 0:03:00]} 2...
e6 {[%clk 0:02:59.9]} 3. Nc3 {[%clk 0:02:59.7]} 3... Bb4 {[%clk 0:03:00.1]} 4.
Qc2 {[%clk 0:02:59.9]} 4... O-O {[%clk 0:02:59.7]} 5. e4 {[%clk 0:02:57.3]} 5...
d5 {[%clk 0:02:59.3]} 6. e5 {[%clk 0:02:56.4]} 6... Ne4 {[%clk 0:02:59.5]} 7.
Bd3 {[%clk 0:02:56.5]} 7... c5 {[%clk 0:02:59.4]} 8. cxd5 {[%clk 0:02:22.4]}
8... exd5 {[%clk 0:02:56.4]} 9. Nf3 {[%clk 0:02:22.5]} 9... cxd4 {[%clk
0:02:36.9]} 10. Nxd4 {[%clk 0:02:20.1]} 10... Nd7 {[%clk 0:02:35]} 11. Bf4
{[%clk 0:02:12.7]} 11... Qh4 {[%clk 0:02:20.1]} 12. g3 {[%clk 0:02:02.2]} 12...
Qh3 {[%clk 0:02:08.3]} 13. O-O-O {[%clk 0:01:59.3]} 13... Bxc3 {[%clk 0:01:54]}
14. bxc3 {[%clk 0:01:42.3]} 14... Ndc5 {[%clk 0:01:53]} 15. f3 {[%clk
0:01:30.6]} 15... Nxd3+ {[%clk 0:01:52.5]} 16. Rxd3 {[%clk 0:01:30.3]} 16... Nc5
{[%clk 0:01:45.3]} 17. Rd2 {[%clk 0:01:25.3]} 17... Be6 {[%clk 0:01:37.2]} 18.
Re1 {[%clk 0:01:15.5]} 18... Rac8 {[%clk 0:01:31.8]} 19. Kb1 {[%clk 0:01:10.6]}
19... b5 {[%clk 0:01:28]} 20. Ka1 {[%clk 0:01:03.9]} 20... b4 {[%clk 0:01:17.5]}
21. cxb4 {[%clk 0:00:53.9]} 21... Ne4 {[%clk 0:01:14.9]} 22. Qb2 {[%clk
0:00:41.4]} 22... Nxd2 {[%clk 0:01:12.5]} 23. Qxd2 {[%clk 0:00:42.3]} 23... Rc4
{[%clk 0:01:08.1]} 24. Nxe6 {[%clk 0:00:19.3]} 24... Qxe6 {[%clk 0:01:04.5]} 25.
Rc1 {[%clk 0:00:16]} 25... Rfc8 {[%clk 0:01:00.4]} 26. Rxc4 {[%clk 0:00:15.2]}
26... dxc4 {[%clk 0:00:59.6]} 27. a3 {[%clk 0:00:13.8]} 27... c3 {[%clk
0:00:58]} 28. Qc2 {[%clk 0:00:13.4]} 28... Qc4 {[%clk 0:00:52.6]} 29. h4 {[%clk
0:00:09]} 29... h6 {[%clk 0:00:51.1]} 0-1

[Event "*** SCC Grand Prix: Titled Tuesday Blitz"]
[Site "Chess.com"]
[Date "2020.06.09"]
[Round "1"]
[White "Generalas"]
[Black "RobertoJBM"]
[Result "0-1"]
[WhiteElo "2376"]
[BlackElo "2725"]
[TimeControl "180+1"]
[EndTime "9:06:22 PDT"]
[Termination "RobertoJBM won on time"]

1. e4 {[%clk 0:02:59.9]} 1... c6 {[%clk 0:02:57.8]} 2. d4 {[%clk 0:02:59]} 2...
d5 {[%clk 0:02:58.7]} 3. exd5 {[%clk 0:02:54.3]} 3... cxd5 {[%clk 0:02:53.8]} 4.
Bd3 {[%clk 0:02:52.1]} 4... Nc6 {[%clk 0:02:52.4]} 5. c3 {[%clk 0:02:51.3]} 5...
g6 {[%clk 0:02:52]} 6. Bf4 {[%clk 0:02:43.1]} 6... Bh6 {[%clk 0:02:48.7]} 7. Bg3
{[%clk 0:02:28.7]} 7... Bf5 {[%clk 0:02:45.9]} 8. Nf3 {[%clk 0:01:52.3]} 8...
Bxd3 {[%clk 0:02:43.4]} 9. Qxd3 {[%clk 0:01:51]} 9... Nf6 {[%clk 0:02:44.3]} 10.
Nbd2 {[%clk 0:01:41.2]} 10... O-O {[%clk 0:02:43.6]} 11. O-O {[%clk 0:01:38.6]}
11... e6 {[%clk 0:02:38.9]} 12. Rfe1 {[%clk 0:01:36.7]} 12... a6 {[%clk
0:02:32.5]} 13. Bh4 {[%clk 0:01:34.2]} 13... Bg7 {[%clk 0:02:32.3]} 14. Ne5
{[%clk 0:01:32.6]} 14... Qc7 {[%clk 0:02:32.3]} 15. Qf3 {[%clk 0:00:35.4]} 15...
Nxe5 {[%clk 0:02:30.3]} 16. dxe5 {[%clk 0:00:33.9]} 16... Nd7 {[%clk 0:02:29.9]}
17. Bf6 {[%clk 0:00:22.5]} 17... Bxf6 {[%clk 0:01:57.6]} 18. exf6 {[%clk
0:00:23.4]} 18... Qd8 {[%clk 0:01:58.2]} 19. c4 {[%clk 0:00:23.4]} 19... Nxf6
{[%clk 0:01:39.7]} 20. cxd5 {[%clk 0:00:22.9]} 20... Nxd5 {[%clk 0:01:40.6]} 21.
Ne4 {[%clk 0:00:17.2]} 21... Qh4 {[%clk 0:00:59.8]} 22. g3 {[%clk 0:00:12.3]}
22... Qh6 {[%clk 0:00:59]} 23. h4 {[%clk 0:00:10.9]} 23... Rfd8 {[%clk
0:00:56.3]} 24. Rad1 {[%clk 0:00:05.7]} 24... Qg7 {[%clk 0:00:56.2]} 25. h5
{[%clk 0:00:03.7]} 25... b5 {[%clk 0:00:46.7]} 26. b3 {[%clk 0:00:03]} 26...
Rac8 {[%clk 0:00:46.1]} 0-1

[Event "*** SCC Grand Prix: Titled Tuesday Blitz"]
[Site "Chess.com"]
[Date "2020.06.09"]
[Round "1"]
[White "kingofthenil"]
[Black "Tesla37"]
[Result "0-1"]
[WhiteElo "2451"]
[BlackElo "2922"]
[TimeControl "180+1"]
[EndTime "9:06:23 PDT"]
[Termination "Tesla37 won on time"]

1. e4 {[%clk 0:02:09.8]} 1... c5 {[%clk 0:02:58]} 2. d3 {[%clk 0:02:09.7]} 2...
e6 {[%clk 0:02:56.2]} 3. g3 {[%clk 0:02:09.9]} 3... d5 {[%clk 0:02:55.7]} 4. Bg2
{[%clk 0:02:10.8]} 4... Nf6 {[%clk 0:02:54.6]} 5. Nd2 {[%clk 0:02:06.8]} 5...
Nc6 {[%clk 0:02:52.7]} 6. Ngf3 {[%clk 0:02:07.3]} 6... g6 {[%clk 0:02:52.4]} 7.
O-O {[%clk 0:02:07.2]} 7... Bg7 {[%clk 0:02:52.3]} 8. Re1 {[%clk 0:02:07.5]}
8... O-O {[%clk 0:02:51.3]} 9. c3 {[%clk 0:02:08]} 9... a5 {[%clk 0:02:43.5]}
10. a4 {[%clk 0:02:05.3]} 10... b6 {[%clk 0:02:41.2]} 11. e5 {[%clk 0:02:01.5]}
11... Nd7 {[%clk 0:02:40.2]} 12. d4 {[%clk 0:02:00.2]} 12... Ba6 {[%clk
0:02:38.7]} 13. Nb1 {[%clk 0:00:42.5]} 13... Rc8 {[%clk 0:02:34.8]} 14. Bg5
{[%clk 0:00:35.4]} 14... Qc7 {[%clk 0:02:33.5]} 15. Na3 {[%clk 0:00:33.7]} 15...
h6 {[%clk 0:02:27.1]} 16. Bf4 {[%clk 0:00:27.3]} 16... cxd4 {[%clk 0:02:25.4]}
17. cxd4 {[%clk 0:00:24.3]} 17... Nb4 {[%clk 0:02:25.1]} 18. Re3 {[%clk
0:00:17.4]} 18... Qb7 {[%clk 0:02:08.8]} 19. Rc3 {[%clk 0:00:16.3]} 19... Rxc3
{[%clk 0:02:00.8]} 20. bxc3 {[%clk 0:00:17.2]} 20... Nd3 {[%clk 0:02:01]} 21.
Be3 {[%clk 0:00:15.3]} 21... Rc8 {[%clk 0:01:59.7]} 22. Qd2 {[%clk 0:00:12.1]}
22... Qc6 {[%clk 0:01:49.2]} 23. Nb5 {[%clk 0:00:08.4]} 23... Bxb5 {[%clk
0:01:45.7]} 24. axb5 {[%clk 0:00:09.3]} 24... Qxc3 {[%clk 0:01:45.2]} 25. Rd1
{[%clk 0:00:03.6]} 25... Nb2 {[%clk 0:01:40.7]} 26. Rc1 {[%clk 0:00:01.4]} 26...
Qxc1+ {[%clk 0:01:37.7]} 27. Qxc1 {[%clk 0:00:02.3]} 27... Rxc1+ {[%clk
0:01:36.4]} 28. Bxc1 {[%clk 0:00:03.2]} 28... Nc4 {[%clk 0:01:33.4]} 29. Nd2
{[%clk 0:00:02.7]} 29... Nxd2 {[%clk 0:01:29]} 30. Bxd2 {[%clk 0:00:03.6]} 30...
Bf8 {[%clk 0:01:26]} 31. Kf1 {[%clk 0:00:02.1]} 31... f6 {[%clk 0:01:22.8]} 32.
exf6 {[%clk 0:00:01.6]} 32... Nxf6 {[%clk 0:01:22.2]} 33. Ke2 {[%clk 0:00:02.5]}
33... Kf7 {[%clk 0:01:21]} 34. Kd3 {[%clk 0:00:02.4]} 34... g5 {[%clk
0:01:20.9]} 35. Bc3 {[%clk 0:00:02.2]} 35... Bd6 {[%clk 0:01:20.1]} 36. h3
{[%clk 0:00:01.7]} 36... Kg6 {[%clk 0:01:19.8]} 37. Bf3 {[%clk 0:00:01.8]} 37...
h5 {[%clk 0:01:19.4]} 38. g4 {[%clk 0:00:01.7]} 38... h4 {[%clk 0:01:14]} 0-1

[Event "*** SCC Grand Prix: Titled Tuesday Blitz"]
[Site "Chess.com"]
[Date "2020.06.09"]
[Round "1"]
[White "TST2014"]
[Black "i_am_sankalp"]
[Result "1-0"]
[WhiteElo "2555"]
[BlackElo "2189"]
[TimeControl "180+1"]
[EndTime "9:06:23 PDT"]
[Termination "TST2014 won by resignation"]

1. d4 {[%clk 0:03:00.9]} 1... Nf6 {[%clk 0:02:57.9]} 2. c4 {[%clk 0:03:00.5]}
2... g6 {[%clk 0:02:55.4]} 3. Nf3 {[%clk 0:03:00.3]} 3... Bg7 {[%clk 0:02:50.4]}
4. Nc3 {[%clk 0:03:00.5]} 4... d5 {[%clk 0:02:49.4]} 5. Bg5 {[%clk 0:02:59.9]}
5... dxc4 {[%clk 0:02:45.1]} 6. e4 {[%clk 0:02:59.3]} 6... O-O {[%clk
0:02:44.8]} 7. Bxc4 {[%clk 0:02:58.2]} 7... Bg4 {[%clk 0:02:44.1]} 8. e5 {[%clk
0:02:47.3]} 8... Nfd7 {[%clk 0:02:40.4]} 9. h3 {[%clk 0:02:45.5]} 9... Be6
{[%clk 0:02:39]} 10. Bxe6 {[%clk 0:02:44.2]} 10... fxe6 {[%clk 0:02:39.9]} 11.
Qb3 {[%clk 0:02:43.9]} 11... Nc6 {[%clk 0:02:31.9]} 12. Qxe6+ {[%clk 0:02:41.4]}
12... Kh8 {[%clk 0:02:32]} 13. Rd1 {[%clk 0:02:35.4]} 13... Nb6 {[%clk 0:02:22]}
14. d5 {[%clk 0:02:25.6]} 14... Rxf3 {[%clk 0:01:56.8]} 15. dxc6 {[%clk
0:02:16.4]} 15... Rd3 {[%clk 0:01:56.3]} 16. cxb7 {[%clk 0:02:10.1]} 16... Rxd1+
{[%clk 0:01:50.5]} 17. Nxd1 {[%clk 0:02:09.7]} 17... Rb8 {[%clk 0:01:49.2]} 18.
O-O {[%clk 0:02:01]} 18... Rxb7 {[%clk 0:01:47.6]} 19. Ne3 {[%clk 0:01:34.1]}
19... c5 {[%clk 0:01:29.6]} 20. Rd1 {[%clk 0:01:30.5]} 20... Qc7 {[%clk
0:01:24.7]} 21. f4 {[%clk 0:01:17.3]} 21... h6 {[%clk 0:01:08.7]} 22. Bh4 {[%clk
0:00:50.9]} 22... Kh7 {[%clk 0:00:55.1]} 23. Kh1 {[%clk 0:00:40.1]} 23... c4
{[%clk 0:00:48]} 24. f5 {[%clk 0:00:33.7]} 24... Qxe5 {[%clk 0:00:32.8]} 25.
fxg6+ {[%clk 0:00:28.3]} 25... Kh8 {[%clk 0:00:27.8]} 26. Rd8+ {[%clk
0:00:26.4]} 1-0

[Event "*** SCC Grand Prix: Titled Tuesday Blitz"]
[Site "Chess.com"]
[Date "2020.06.09"]
[Round "1"]
[White "crywolf1986"]
[Black "margarita_2703"]
[Result "0-1"]
[WhiteElo "2469"]
[BlackElo "2538"]
[TimeControl "180+1"]
[EndTime "9:06:24 PDT"]
[Termination "margarita_2703 won by checkmate"]

1. d4 {[%clk 0:03:00.5]} 1... Nf6 {[%clk 0:02:59.2]} 2. Nf3 {[%clk 0:03:00.8]}
2... d5 {[%clk 0:02:58]} 3. c4 {[%clk 0:03:01.1]} 3... e6 {[%clk 0:02:57.6]} 4.
e3 {[%clk 0:03:00.9]} 4... c6 {[%clk 0:02:56.6]} 5. Nbd2 {[%clk 0:03:01.1]} 5...
Nbd7 {[%clk 0:02:56.3]} 6. Bd3 {[%clk 0:03:01.4]} 6... Bd6 {[%clk 0:02:54]} 7.
O-O {[%clk 0:03:01.4]} 7... O-O {[%clk 0:02:53.7]} 8. e4 {[%clk 0:03:01.8]} 8...
dxc4 {[%clk 0:02:53.8]} 9. Nxc4 {[%clk 0:03:01.2]} 9... Be7 {[%clk 0:02:43.3]}
10. Bf4 {[%clk 0:03:00.4]} 10... b5 {[%clk 0:02:39.6]} 11. Nce5 {[%clk 0:02:58]}
11... Bb7 {[%clk 0:02:37.2]} 12. Qe2 {[%clk 0:02:55.5]} 12... a6 {[%clk
0:02:34.7]} 13. Rfd1 {[%clk 0:02:54.6]} 13... Qe8 {[%clk 0:02:22.4]} 14. Rac1
{[%clk 0:02:53]} 14... Rc8 {[%clk 0:02:20.6]} 15. Bb1 {[%clk 0:02:52.4]} 15...
c5 {[%clk 0:02:13.6]} 16. Nxd7 {[%clk 0:02:51.8]} 16... Nxd7 {[%clk 0:02:12.8]}
17. d5 {[%clk 0:02:50.7]} 17... exd5 {[%clk 0:02:06.6]} 18. exd5 {[%clk
0:02:50.2]} 18... Bf6 {[%clk 0:02:05.2]} 19. Qc2 {[%clk 0:02:47.8]} 19... g6
{[%clk 0:01:58.6]} 20. Bd6 {[%clk 0:02:46.4]} 20... c4 {[%clk 0:01:52.5]} 21.
Re1 {[%clk 0:02:42.1]} 21... Qd8 {[%clk 0:01:49.7]} 22. Bxf8 {[%clk 0:02:42.2]}
22... Qxf8 {[%clk 0:01:49.4]} 23. Rcd1 {[%clk 0:02:42]} 23... Nc5 {[%clk
0:01:44.8]} 24. Ne5 {[%clk 0:02:38.2]} 24... Qd6 {[%clk 0:01:37.4]} 25. Nc6
{[%clk 0:02:37.1]} 25... Bxc6 {[%clk 0:01:32]} 26. dxc6 {[%clk 0:02:38]} 26...
Qxc6 {[%clk 0:01:31.2]} 27. Qd2 {[%clk 0:02:34.9]} 27... Kg7 {[%clk 0:01:27.3]}
28. Re2 {[%clk 0:02:31.8]} 28... Rd8 {[%clk 0:01:25.4]} 29. Qe1 {[%clk
0:02:31.4]} 29... Nd3 {[%clk 0:01:24.7]} 30. Bxd3 {[%clk 0:02:31.5]} 30... cxd3
{[%clk 0:01:24.7]} 31. Red2 {[%clk 0:02:31.9]} 31... Qc4 {[%clk 0:01:24.3]} 32.
Qe3 {[%clk 0:02:30.2]} 32... Qxa2 {[%clk 0:01:23.7]} 33. Qb6 {[%clk 0:01:58.1]}
33... Rd5 {[%clk 0:01:18.7]} 34. h3 {[%clk 0:01:52.2]} 34... Bg5 {[%clk
0:01:13.5]} 35. f4 {[%clk 0:01:43.6]} 35... Bxf4 {[%clk 0:01:12.1]} 36. Rf2
{[%clk 0:01:43.7]} 36... Be5 {[%clk 0:01:09.7]} 37. Rxf7+ {[%clk 0:01:32.4]}
37... Kxf7 {[%clk 0:01:08.8]} 38. Rf1+ {[%clk 0:01:29.6]} 38... Kg7 {[%clk
0:01:04.5]} 39. Qb7+ {[%clk 0:01:26]} 39... Kh6 {[%clk 0:01:03.4]} 40. Qf7
{[%clk 0:01:22.3]} 40... Bd4+ {[%clk 0:01:02.5]} 41. Kh1 {[%clk 0:01:19.1]}
41... Qc4 {[%clk 0:00:55.8]} 42. Qf8+ {[%clk 0:01:18.1]} 42... Bg7 {[%clk
0:00:54.1]} 43. Qe7 {[%clk 0:01:12.3]} 43... d2 {[%clk 0:00:52.8]} 44. Rd1
{[%clk 0:01:07.7]} 44... Re5 {[%clk 0:00:50.1]} 45. Qd8 {[%clk 0:00:59.9]} 45...
Re1+ {[%clk 0:00:49.6]} 46. Kh2 {[%clk 0:00:57.5]} 46... Qf4+ {[%clk 0:00:49.2]}
47. g3 {[%clk 0:00:57.5]} 47... Qf2# {[%clk 0:00:49.2]} 0-1